bitfinex-derivatives/quotes_ETHF0:USTF0_20251031
["timestamp","ask_amount","ask_price","bid_price","bid_amount"]
[1761935353786,0.47108,3823.2,3823.1,0.2268]
[1761935356297,0.47104,3823.5,3823.4,0.2268]
[1761935356489,0.47103,3823.6,3823.5,0.13]
[1761935356791,0.47103,3823.6,3823.5,0.3568]
[1761935357094,0.00233612,3823.7,3823.6,0.2268]
[1761935357095,0.47335612,3823.7,3823.6,0.2268]
[1761935362498,0.00233612,3823.7,3823.6,0.69783]
[1761935362685,1.40935214,3825.3,3824.9,0.2162]
[1761935362884,4.38479,3825.6,3824.9,0.2162]
[1761935362885,9.2913,3825.5,3824.9,0.2162]
[1761935363095,0.47086,3825.0,3824.9,0.2162]
[1761935363693,0.70348371,3825.0,3824.9,0.2162]
[1761935363996,0.70147,3824.9,3824.8,3.424]
[1761935366296,0.2306,3824.9,3824.8,3.424]
[1761935366502,0.47288371,3825.0,3824.8,3.2078]
[1761935366695,0.47288371,3825.0,3824.9,0.2162]
[1761935367098,0.00202371,3825.0,3824.9,0.68707]
[1761935368298,0.9795,3825.4,3825.3,0.68702]
[1761935368496,0.9795,3825.4,3825.3,3.89482]
[1761935369190,0.98156567,3825.4,3825.3,3.89482]
[1761935369387,4.18936567,3825.4,3825.0,0.1377]
[1761935369588,0.2306,3824.5,3824.4,3.91080332]
[1761935369791,0.2306,3824.5,3824.2,0.93733777]
[1761935369792,1.17736,3824.4,3823.5,13.19980332]
[1761935369995,1.17736,3824.4,3823.6,0.2162]
[1761935369996,0.47102,3823.7,3823.6,0.2162]
[1761935370795,0.2306,3823.7,3823.1,9.86200332]
[1761935370993,0.2306,3823.7,3823.0,3.97970332]
[1761935371197,0.2306,3823.7,3823.0,3.2767]
[1761935371403,0.47108,3823.3,3823.1,0.2162]
[1761935371698,0.47107,3823.3,3823.2,0.2162]
[1761935371896,3.2078,3823.8,3823.4,0.2162]
[1761935372100,3.2078,3823.8,3823.7,0.2162]
[1761935372901,3.67881,3823.8,3823.7,0.2162]
[1761935373504,0.47101,3823.8,3823.7,0.2162]
[1761935375400,0.133,3824.0,3823.8,0.2162]
[1761935378307,0.47099,3823.9,3823.8,0.2162]
[1761935379109,0.47098,3824.0,3823.6,9.159]
[1761935379405,0.47098,3824.0,3823.9,0.2162]
[1761935380405,0.83378,3824.0,3823.9,0.2162]
[1761935380600,0.47102,3823.7,3823.6,9.3899]
[1761935382308,0.47102,3823.7,3823.6,0.2309]
[1761935382510,0.47102,3823.7,3823.6,9.3899]
[1761935383804,1.17739,3824.3,3823.7,0.2309]
[1761935384501,0.47092,3824.5,3824.4,0.2309]
[1761935384706,0.61232,3824.5,3824.4,9.3899]
[1761935384907,0.83372,3824.5,3824.4,9.3899]
[1761935387005,0.61232,3824.5,3824.4,9.3899]
[1761935388309,0.47092,3824.5,3824.4,9.3899]
[1761935388504,1.17707,3825.3,3824.5,0.83342]
[1761935388721,3.81166,3825.0,3824.9,0.2309]
[1761935389019,0.47091,3824.6,3824.5,0.2309]
[1761935389201,0.47091,3824.6,3824.5,9.3889]
[1761935391216,0.47091,3824.6,3824.5,0.2309]
[1761935391716,0.47091,3824.6,3824.5,9.3889]
[1761935393925,0.47094,3824.3,3824.2,0.93365235]
[1761935394110,0.47094,3824.3,3824.2,10.09065235]
[1761935394618,0.47092,3824.5,3824.4,0.2309]
[1761935395220,0.47092,3824.5,3824.4,9.3879]
[1761935399516,0.47092,3824.6,3824.5,0.60252]
[1761935399707,0.47089,3824.8,3824.6,0.4709]
[1761935399914,0.47089,3824.8,3824.7,9.3869]
[1761935400208,3.2078,3825.0,3824.9,0.70177]
[1761935400413,0.98156567,3825.4,3825.3,0.70172]
[1761935400617,1.45237567,3825.4,3825.3,0.2309]
[1761935400817,0.2214,3824.9,3824.8,0.70411967]
[1761935401022,0.69227,3824.9,3824.8,9.156]
[1761935401222,0.69231,3824.6,3824.5,3.2078]
[1761935401435,0.83372,3824.5,3824.4,0.70411967]
[1761935401615,0.47094,3824.3,3824.2,0.70411967]
[1761935401815,0.47094,3824.3,3824.2,9.3869]
[1761935402018,0.47097,3824.2,3824.0,0.70411967]
[1761935402220,0.47097,3824.2,3824.1,10.09101967]
[1761935402422,0.47094,3824.4,3824.2,0.47096]
[1761935402617,0.47096,3824.2,3824.1,0.93501967]
[1761935402918,0.69237,3824.1,3824.0,0.70411967]
[1761935403224,0.3628,3824.0,3823.8,0.70411967]
[1761935403419,0.47099,3823.9,3823.8,0.70411967]
[1761935403612,0.47099,3823.9,3823.8,9.85911967]
[1761935403816,0.47099,3823.9,3823.8,10.09001967]
[1761935404930,0.61239,3824.0,3823.8,10.09001967]
[1761935405126,0.47099,3823.9,3823.8,10.09001967]
[1761935405325,0.69239,3823.9,3823.8,9.85911967]
[1761935405720,0.61238,3824.0,3823.9,0.2309]
[1761935406028,0.61238,3824.0,3823.9,9.3859]
[1761935406228,0.83378,3824.0,3823.9,9.3859]
[1761935406818,0.61238,3824.0,3823.9,9.3859]
[1761935407024,0.47098,3824.0,3823.9,9.3859]
[1761935407422,0.69242,3823.7,3823.6,0.70411967]
[1761935407631,0.69243,3823.6,3823.5,3.2078]
[1761935407929,0.69243,3823.6,3823.5,12.3628]
[1761935408131,0.69247,3823.3,3823.2,0.70411967]
[1761935408436,0.8339,3823.0,3822.9,0.00279426]
[1761935408627,0.8339,3823.0,3822.9,9.15779426]
[1761935408829,0.8339,3823.0,3822.9,0.00279426]
[1761935409030,0.8339,3823.0,3822.9,9.15779426]
[1761935410124,0.3628,3823.0,3822.9,0.00279426]
[1761935410335,0.3628,3823.0,3822.9,8.43569426]
[1761935410725,0.1414,3823.0,3822.9,8.43569426]
[1761935410926,0.3748,3823.0,3822.9,8.43569426]
[1761935411936,0.3748,3823.0,3822.9,9.15879426]
[1761935412130,0.3748,3823.0,3822.9,0.00279426]
[1761935412329,3.5826,3823.0,3822.9,0.00279426]
[1761935413837,3.5826,3823.0,3822.9,0.22639426]
[1761935414138,3.3492,3823.0,3822.9,0.22639426]
[1761935415830,0.1414,3823.0,3822.9,0.22639426]
[1761935416030,1.286,3823.1,3823.0,0.2236]
[1761935416232,1.286,3823.1,3823.0,9.3796]
[1761935416936,1.286,3823.1,3823.0,9.9823]
[1761935417137,1.286,3823.1,3823.0,13.1901]
[1761935417437,1.286,3823.1,3823.0,4.0341]
[1761935417741,1.286,3823.1,3823.0,13.1901]
[1761935418836,0.1414,3824.0,3823.0,21.0667181]
[1761935419046,0.1291,3823.5,3823.4,3.67885]
[1761935419336,0.81864,3823.5,3823.4,12.3638]
[1761935419737,0.1291,3823.5,3823.4,12.83486]
[1761935421845,0.1291,3823.5,3823.4,20.83486]
[1761935422037,0.1291,3823.5,3823.4,21.5377781]
[1761935422735,0.1291,3823.5,3823.4,13.77219777]
[1761935424154,0.1291,3823.5,3823.4,54.10113777]
[1761935424342,0.1291,3823.5,3823.4,53.1638]
[1761935424542,0.1291,3823.5,3823.4,53.63486]
[1761935425152,0.1291,3823.5,3823.4,12.83486]
[1761935428158,0.1414,3824.0,3823.9,0.47099]
[1761935428358,0.0424222,3824.5,3824.4,0.47093]
[1761935428559,0.0424222,3824.5,3824.4,9.62593]
[1761935428957,0.132,3825.0,3824.9,0.47087]
[1761935429161,0.00206567,3825.4,3825.3,0.47082]
[1761935429356,0.00206567,3825.4,3825.3,13.53674012]
[1761935429562,0.00206567,3825.4,3825.3,12.3618]
[1761935429563,0.22056567,3825.4,3825.3,12.3618]
[1761935429757,0.22056567,3825.4,3825.3,3.2078]
[1761935429962,0.2185,3825.3,3825.2,0.70312012]
[1761935430159,0.3476,3825.0,3824.9,6.825]
[1761935433767,0.3476,3825.0,3824.5,3.2078]
[1761935433768,0.2185,3824.6,3824.5,3.2078]
[1761935434158,0.2185,3824.6,3824.5,9.3338]
[1761935436264,0.1291,3825.0,3824.5,9.3338]
[1761935436864,0.1291,3825.0,3824.9,3.67867]
[1761935437064,0.1291,3825.0,3824.9,12.83167]
[1761935439068,0.1291,3825.0,3824.9,12.3608]
[1761935439267,0.1291,3825.0,3824.9,12.83167]
[1761935439474,0.1291,3825.0,3824.9,12.3608]
[1761935439665,0.3476,3825.0,3824.9,9.152]
[1761935440265,0.1291,3825.0,3824.5,3.2078]
[1761935440462,0.1291,3825.0,3824.6,9.6229]
[1761935441161,0.1291,3825.0,3824.7,0.4709]
[1761935441872,0.1291,3825.0,3824.6,9.152]
[1761935441873,0.1291,3825.0,3824.5,3.2078]
[1761935442072,0.1291,3825.0,3824.6,9.152]
[1761935442271,0.1291,3825.0,3824.9,3.67867]
[1761935445669,3.3369,3826.5,3825.9,0.47075]
[1761935445864,3.3369,3826.5,3825.9,9.62175]
[1761935446571,0.13156923,3826.0,3825.9,9.62477688]
[1761935446869,0.13156923,3826.0,3825.9,9.15402688]
[1761935447077,0.35596923,3826.0,3825.9,9.15402688]
[1761935447268,0.35596923,3826.0,3825.9,0.00302688]
[1761935450762,0.3562,3825.0,3824.9,3.2078]
[1761935450975,0.3562,3825.0,3824.9,12.3578]
[1761935451672,0.3562,3825.0,3824.5,3.2078]
[1761935451972,0.2244,3824.6,3824.5,3.2078]
[1761935452278,0.2244,3824.6,3824.5,3.21051601]
[1761935457278,0.1318,3825.0,3824.5,3.68143601]
[1761935457485,0.1318,3825.0,3824.5,3.21051601]
[1761935457674,0.2244,3824.6,3824.5,3.21051601]
[1761935457875,0.2244,3824.6,3824.5,12.36051601]
[1761935458481,0.1318,3825.0,3824.5,12.36051601]
[1761935459379,0.2244,3824.6,3824.5,12.36051601]
[1761935459979,0.2244,3824.6,3824.5,3.21051601]
[1761935460180,0.2244,3824.6,3824.5,12.36051601]
[1761935460686,0.2244,3824.6,3824.5,3.21051601]
[1761935462176,0.3562,3823.5,3823.3,3.2078]
[1761935462385,0.2244,3823.4,3823.3,3.2078]
[1761935462585,0.2244,3823.4,3823.3,12.3578]
[1761935462981,0.2244,3823.4,3823.3,9.15]
[1761935463282,0.1318,3823.5,3823.3,9.62334592]
[1761935463789,0.1318,3823.5,3823.3,9.15227592]
[1761935464382,0.1318,3823.5,3823.3,0.47334592]
[1761935464579,0.1318,3823.5,3823.4,0.47106]
[1761935464780,0.1318,3823.5,3823.4,9.62206]
[1761935465487,0.3562,3823.5,3823.4,9.151]
[1761935466583,0.3562,3823.5,3823.4,9.62206]
[1761935466889,0.3562,3823.5,3823.4,9.151]
[1761935467084,0.3562,3823.5,3823.3,0.00227592]
[1761935467286,0.1318,3823.5,3823.4,9.151]
[1761935467592,0.1318,3823.5,3823.4,9.62206]
[1761935468588,0.2244,3823.4,3823.3,0.00227592]
[1761935468890,0.2244,3823.4,3823.3,9.15327592]
[1761935469094,0.2244,3823.4,3823.3,0.00227592]
[1761935472690,0.3629,3822.5,3822.4,5.84005798]
[1761935472885,0.1385,3822.5,3822.4,14.55785798]
[1761935473085,0.1385,3823.0,3822.9,0.47112]
[1761935473385,0.1385,3822.5,3822.4,9.04785798]
[1761935473692,0.14148704,3822.5,3822.4,18.20493871]
[1761935473896,0.14148704,3822.5,3822.4,18.67610871]
[1761935474085,0.14148704,3822.5,3822.4,18.67510871]
[1761935474284,0.14148704,3822.5,3822.4,9.52210871]
[1761935474490,0.14148704,3822.5,3822.4,18.67510871]
[1761935474886,0.14148704,3822.5,3822.4,0.00308073]
[1761935474887,0.37798704,3822.5,3822.4,0.00308073]
[1761935477493,0.37798704,3822.5,3821.8,9.57507559]
[1761935477494,0.2365,3821.9,3821.8,9.57507559]
[1761935477794,0.1385,3822.0,3821.8,9.57507559]
[1761935477994,0.1385,3822.0,3821.8,10.04632559]
[1761935478394,0.14148704,3822.5,3821.9,8.0]
[1761935478598,0.14148704,3822.5,3822.4,3.67898]
[1761935478897,0.1385,3823.0,3822.9,0.47112]
[1761935479087,0.1318,3823.5,3823.4,0.47106]
[1761935479292,0.1318,3823.5,3823.4,9.63806]
[1761935479895,0.13376431,3823.5,3823.4,9.63806]
[1761935480491,0.13376431,3823.5,3823.3,3.2078]
[1761935480687,0.13376431,3823.5,3823.4,9.167]
[1761935482591,0.13376431,3823.5,3823.3,3.67887]
[1761935482792,0.13376431,3823.5,3823.4,9.173]
[1761935483987,0.2331,3823.4,3822.9,3.2078]
[1761935484190,0.2331,3822.8,3822.7,0.9385687]
[1761935484395,0.2331,3822.8,3822.7,9.177]
[1761935484690,0.2331,3822.6,3822.5,3.2078]
[1761935485393,0.1373,3822.5,3822.0,3.2078]
[1761935485594,0.1373,3822.5,3822.0,12.3868]
[1761935486195,0.3704,3822.0,3821.9,0.0022115]
[1761935487392,0.1373,3822.0,3821.9,0.0022115]
[1761935489200,0.1373,3822.0,3821.9,0.4734515]
[1761935491597,0.1373,3822.0,3821.9,0.0022115]
[1761935491794,0.1373,3822.0,3821.9,0.4734515]
[1761935492801,0.1373,3822.5,3822.3,0.47119]
[1761935492993,0.2331,3822.4,3822.3,3.2078]
[1761935493193,0.2331,3822.4,3822.3,9.193]
[1761935493398,0.3704,3822.0,3821.9,0.0022115]
[1761935494098,8.3704,3822.0,3821.8,0.42007559]
[1761935494302,0.3704,3821.5,3821.4,3.2078]
[1761935494492,0.2331,3821.2,3821.1,9.2]
[1761935495095,0.2331,3821.2,3821.1,9.20188001]
[1761935495702,0.2331,3821.2,3821.1,9.20588001]
[1761935497002,0.1373,3821.5,3821.3,0.47131]
[1761935497193,0.1373,3821.5,3821.3,3.67911]
[1761935497801,0.1373,3822.0,3821.9,0.47124]
[1761935498008,0.1373,3822.0,3821.9,12.88004]
[1761935500106,0.1373,3822.0,3821.9,12.4218]
[1761935500808,0.1373,3822.0,3821.9,12.4228]
[1761935501105,0.3656,3821.5,3821.1,0.00188001]
[1761935501402,0.137,3821.5,3821.4,0.4713]
[1761935502201,0.137,3821.5,3821.4,9.6853]
[1761935502402,0.137,3821.5,3821.4,9.214]
[1761935502905,0.137,3821.5,3821.1,0.00188001]
[1761935503106,0.2286,3820.8,3820.7,3.10823734]
[1761935503299,0.137,3820.0,3819.8,9.216]
[1761935503500,0.2286,3819.8,3819.7,0.02618041]
[1761935503705,0.2286,3819.8,3819.7,9.24518041]
[1761935503901,0.137,3820.0,3819.7,9.24518041]
[1761935504104,0.2286,3819.8,3819.7,0.02618041]
[1761935504410,0.2286,3819.8,3819.7,0.02900688]
[1761935504604,0.13926155,3820.0,3819.7,9.25800688]
[1761935504913,0.13926155,3820.0,3819.9,3.2078]
[1761935505911,0.13926155,3820.0,3819.7,9.72951688]
[1761935506314,0.13926155,3820.0,3819.8,0.4715]
[1761935506806,0.13926155,3820.0,3819.9,3.2078]
[1761935509712,0.13926155,3820.0,3819.9,12.4368]
[1761935510011,0.13926155,3820.0,3819.9,3.2078]
[1761935510216,0.13926155,3820.0,3819.9,9.229]
[1761935510408,0.13926155,3820.0,3819.9,12.4368]
[1761935510808,0.13926155,3820.0,3819.9,12.4358]
[1761935511014,0.13926155,3820.0,3819.9,9.228]
[1761935511900,0.36786155,3820.0,3819.9,9.229]
[1761935512101,0.36786155,3820.0,3819.7,0.02900688]
[1761935512301,0.2286,3819.9,3819.8,9.238]
[1761935512507,0.13926155,3820.0,3819.8,9.238]
[1761935512914,0.13926155,3820.0,3819.8,9.70949]
[1761935513904,0.13926155,3820.0,3819.8,9.238]
[1761935514415,0.2286,3819.8,3819.7,0.02900688]
[1761935516616,0.13926155,3820.0,3819.7,0.50051688]
[1761935516813,0.13926155,3820.0,3819.8,0.47149]
[1761935517115,0.13926155,3820.0,3819.7,0.02900688]
[1761935517309,0.13926155,3820.0,3819.8,0.47149]
[1761935517505,0.13926155,3820.0,3819.9,0.47149]
[1761935517723,0.13926155,3820.0,3819.9,3.67929]
[1761935518515,1.2593,3820.3,3820.2,0.47145]
[1761935518516,1.15924585,3820.3,3820.2,0.47145]
[1761935518720,1.15924585,3820.3,3820.2,9.71745]
[1761935519609,1.16119946,3820.3,3820.2,9.71745]
[1761935519918,1.16119946,3820.3,3819.9,3.2078]
[1761935520120,0.137,3820.0,3819.7,0.02900688]
[1761935520322,0.2286,3819.8,3819.7,0.02900688]
[1761935520519,0.2286,3819.8,3819.7,9.28300688]
[1761935521018,0.137,3820.0,3819.7,0.02900688]
[1761935521224,0.137,3820.0,3819.7,9.28300688]
[1761935521606,0.137,3820.0,3819.8,0.4715]
[1761935521812,0.137,3820.0,3819.9,9.72549]
[1761935523224,1.16119946,3820.3,3820.1,0.47146]
[1761935523424,1.16119946,3820.3,3820.2,3.67925]
[1761935524016,0.137,3820.0,3819.9,0.47149]
[1761935524325,0.137,3820.0,3819.9,9.72249]
[1761935524520,0.137,3820.0,3819.9,9.251]
[1761935525828,0.137,3820.0,3819.7,3.23680688]
[1761935526024,0.2286,3819.8,3819.7,3.23680688]
[1761935526230,0.2286,3819.8,3819.7,12.48880688]
[1761935526415,0.2286,3819.8,3819.7,12.96031688]
[1761935526726,0.137,3820.0,3819.7,12.96030688]
[1761935527118,0.137,3820.0,3819.9,0.47149]
[1761935527318,0.137,3820.0,3819.8,0.4715]
[1761935527616,0.137,3820.0,3819.9,0.47149]
[1761935528226,0.137,3820.0,3819.8,0.4715]
[1761935528422,0.137,3820.0,3819.7,12.48880688]
[1761935528623,0.137,3820.0,3819.7,12.96031688]
[1761935529022,0.2286,3819.8,3819.7,3.23680688]
[1761935529220,0.137,3820.0,3819.7,12.95731688]
[1761935530128,0.137,3820.0,3819.7,12.48580688]
[1761935530624,0.2286,3819.8,3819.7,12.95731688]
[1761935530822,0.137,3820.0,3819.7,12.95731688]
[1761935531023,0.2192,3819.8,3819.7,3.23680688]
[1761935531327,0.137,3820.0,3819.8,0.4715]
[1761935531527,0.137,3820.0,3819.7,12.49380688]
[1761935531831,3.427,3819.8,3819.7,0.02900688]
[1761935532530,11.427,3819.8,3819.7,0.02900688]
[1761935533526,0.2192,3819.8,3819.7,0.02900688]
[1761935533725,0.137,3820.0,3819.7,0.02900688]
[1761935533928,0.2192,3819.8,3819.7,0.02900688]
[1761935534128,0.137,3820.0,3819.7,0.50051688]
[1761935534327,0.137,3820.0,3819.7,0.02900688]
[1761935534722,0.137,3820.0,3819.8,0.4715]
[1761935535421,0.137,3820.0,3819.8,0.47149]
[1761935535627,0.137,3820.0,3819.7,0.96757558]
[1761935535828,0.2192,3819.9,3819.8,9.264]
[1761935536022,0.137,3820.0,3819.7,0.02900688]
[1761935536622,0.137,3820.0,3819.8,9.7355]
[1761935537936,0.137,3820.0,3819.8,9.264]
[1761935538125,0.137,3820.0,3819.8,9.7355]
[1761935539133,1.16119946,3820.3,3820.2,0.47145]
[1761935539336,1.16119946,3820.3,3820.2,9.261]
[1761935539530,1.16119946,3820.3,3820.1,3.2078]
[1761935539725,0.1305,3820.0,3819.9,0.9409653]
[1761935539925,0.1305,3820.0,3819.9,9.265]
[1761935540332,0.1305,3820.0,3819.9,9.73649]
[1761935541135,0.1305,3820.0,3819.9,0.47149]
[1761935541332,0.1305,3820.0,3819.9,10.6744553]
[1761935541537,0.1305,3820.0,3819.9,9.73349]
[1761935541835,0.1305,3820.0,3819.9,10.6744553]
[1761935542723,0.1305,3820.0,3819.9,10.2029653]
[1761935543131,0.1305,3820.0,3819.9,10.6744553]
[1761935543332,0.00195361,3820.3,3820.2,0.47145]
[1761935544533,0.00195361,3820.3,3820.1,3.2078]
[1761935545029,0.00195361,3820.3,3820.1,3.67926]
[1761935545237,0.00195361,3820.3,3820.2,0.47145]
[1761935546840,0.137,3820.5,3820.4,0.47143]
[1761935547032,0.137,3820.5,3820.4,9.72743]
[1761935547231,0.137,3821.0,3820.9,0.47136]
[1761935547431,0.137,3821.0,3820.9,9.72536]
[1761935547634,0.137,3821.0,3820.9,12.93316]
[1761935548039,0.13923814,3821.0,3820.9,12.93316]
[1761935550042,0.13923814,3821.0,3820.9,9.254]
[1761935550238,0.13923814,3821.0,3820.9,9.248]
[1761935550541,0.36073814,3821.0,3820.7,0.47138]
[1761935550843,0.2215,3820.9,3820.8,9.248]
[1761935551638,0.2215,3820.9,3820.8,9.71938]
[1761935551936,0.13923814,3821.0,3820.9,0.47136]
[1761935552641,0.13923814,3821.0,3820.8,9.248]
[1761935552942,0.13923814,3821.0,3820.8,9.71937]
[1761935553936,0.2215,3820.9,3820.6,0.94097297]
[1761935554137,0.2215,3820.9,3820.7,9.247]
[1761935554531,0.2215,3820.9,3820.7,9.71838]
[1761935554934,0.2215,3820.9,3820.7,9.71839]
[1761935555140,0.2215,3820.8,3820.7,9.247]
[1761935555348,0.2215,3820.6,3820.5,3.2078]
[1761935555538,0.2215,3820.6,3820.5,12.4508]
[1761935556140,0.2215,3820.6,3820.5,12.4488]
[1761935556438,0.3595,3820.0,3819.8,0.47149]
[1761935556744,0.3595,3820.0,3819.9,9.71249]
[1761935557243,0.138,3820.0,3819.9,12.92029]
[1761935557547,0.138,3820.5,3820.3,0.47143]
[1761935557743,0.138,3820.5,3820.3,9.71343]
[1761935558146,0.138,3820.5,3820.4,0.47142]
[1761935558645,0.138,3820.5,3820.3,9.71344]
[1761935558845,0.138,3820.5,3820.3,9.242]
[1761935559033,0.138,3820.5,3820.3,9.71344]
[1761935559441,0.2215,3820.4,3820.3,9.242]
[1761935559640,0.138,3820.0,3819.9,3.67929]
[1761935559840,0.138,3820.0,3819.9,12.92129]
[1761935560048,0.138,3820.0,3819.9,12.92229]
[1761935560849,0.138,3820.5,3820.4,0.47142]
[1761935561045,0.138,3820.5,3820.4,9.71842]
[1761935561246,0.138,3820.5,3820.4,9.247]
[1761935562048,0.138,3820.5,3820.4,9.71842]
[1761935562347,0.138,3820.5,3820.4,9.247]
[1761935563849,0.138,3820.5,3820.4,9.71842]
[1761935564347,0.138,3820.5,3820.4,10.65939297]
[1761935564544,0.138,3820.5,3820.4,9.71842]
[1761935564940,0.2233,3820.4,3820.3,3.2078]
[1761935565142,0.2233,3820.4,3820.2,0.94097297]
[1761935565143,0.2233,3820.3,3820.2,0.94097297]
[1761935565337,0.2233,3820.2,3820.1,9.245]
[1761935566942,0.138,3820.5,3820.1,9.245]
[1761935567151,0.138,3820.5,3820.2,0.47145]
[1761935567349,0.138,3820.5,3820.1,9.245]
[1761935567849,0.1346,3820.0,3819.7,0.96997985]
[1761935568050,0.1346,3820.0,3819.8,9.7295]
[1761935568254,0.1346,3820.0,3819.8,9.258]
[1761935568552,0.2233,3819.9,3819.8,9.258]
[1761935569546,0.2233,3819.9,3819.7,0.02900688]
[1761935569851,0.2233,3819.9,3819.8,9.257]
[1761935570052,0.1346,3820.0,3819.7,0.02900688]
[1761935570053,0.2233,3819.8,3819.7,0.02900688]
[1761935571254,3.3424,3820.0,3819.7,9.28600688]
[1761935571455,0.2233,3819.8,3819.7,9.28600688]
[1761935572557,3.3424,3820.0,3819.7,9.28600688]
[1761935572749,3.3424,3820.0,3819.7,0.02900688]
[1761935573651,0.1346,3820.0,3819.7,0.02900688]
[1761935573945,0.1346,3820.0,3819.7,0.50051688]
[1761935574153,0.1346,3820.0,3819.9,3.2078]
[1761935574460,0.1346,3820.0,3819.9,12.93429]
[1761935574860,0.1346,3820.0,3819.9,9.255]
[1761935575052,0.3579,3820.0,3819.7,0.02900688]
[1761935575365,0.2233,3819.9,3819.8,9.257]
[1761935576862,0.1346,3820.0,3819.8,9.257]
[1761935577766,0.1346,3820.0,3819.9,0.47149]
[1761935578163,0.2233,3819.8,3819.7,0.02900688]
[1761935578773,0.1346,3820.0,3819.7,0.02900688]
[1761935579865,0.2233,3819.8,3819.7,0.02900688]
[1761935580067,0.1346,3820.0,3819.7,7.15700688]
[1761935580266,0.2233,3819.9,3819.8,9.257]
[1761935580568,0.2233,3819.8,3819.7,0.02900688]
[1761935581066,3.3424,3820.0,3819.8,0.4715]
[1761935581563,0.1346,3820.0,3819.9,0.47149]
[1761935581768,0.138,3820.5,3820.1,0.47146]
[1761935582070,0.13923814,3821.0,3820.2,9.263]
[1761935582261,0.13923814,3821.0,3820.5,3.2078]
[1761935582460,0.13923814,3821.0,3820.6,9.265]
[1761935582769,0.13923814,3821.0,3820.7,0.47138]
[1761935582970,0.13923814,3821.0,3820.8,0.47136]
[1761935583166,0.13923814,3821.0,3820.6,9.265]
[1761935583167,0.13923814,3821.0,3820.9,0.47136]
[1761935585071,0.13923814,3821.0,3820.8,0.47137]
[1761935585463,0.13923814,3821.0,3820.9,0.47136]
[1761935585659,1.1595,3821.4,3820.9,0.47136]
[1761935585660,1.1595,3821.4,3821.2,0.47132]
[1761935585861,1.1595,3821.4,3821.3,12.4698]
[1761935586262,1.1595,3821.4,3821.3,13.4083485]
[1761935586560,0.4454,3821.4,3821.3,13.4083485]
[1761935586767,0.1346,3821.5,3821.4,0.4713]
[1761935587166,0.1346,3821.5,3821.3,13.8796585]
[1761935587167,0.13649261,3821.5,3821.3,13.8796585]
[1761935587371,0.13649261,3821.5,3821.3,12.94111]
[1761935587856,0.13649261,3821.5,3821.3,13.8796585]
[1761935588173,0.13649261,3821.5,3821.3,12.94111]
[1761935588666,3.3424,3822.5,3821.8,0.47124]
[1761935588870,3.3424,3822.5,3821.9,9.258]
[1761935589770,0.1346,3821.5,3821.3,3.2078]
[1761935589964,0.1346,3821.5,3821.4,9.253]
[1761935590162,0.13689205,3822.0,3821.9,0.47124]
[1761935590365,0.13689205,3822.0,3821.9,12.93304]
[1761935590971,0.1346,3822.5,3822.4,0.47118]
[1761935591167,0.1346,3822.5,3822.4,12.4688]
[1761935591669,0.1346,3822.5,3822.4,12.93998]
[1761935591870,0.1346,3822.5,3822.4,12.4688]
[1761935592173,0.1346,3822.5,3822.2,0.4712]
[1761935592372,0.1346,3822.5,3822.1,0.47121]
[1761935592672,0.13752924,3822.5,3822.4,0.00307887]
[1761935593265,0.36112924,3822.5,3822.4,0.00307887]
[1761935593465,0.36112924,3822.5,3822.4,9.26007887]
[1761935594270,0.36112924,3822.5,3822.4,0.00307887]
[1761935594471,0.36112924,3822.5,3822.4,9.26107887]
[1761935596077,3.56892924,3822.5,3822.4,9.25507887]
[1761935596375,11.56892924,3822.5,3822.4,0.00307887]
[1761935598166,11.56892924,3822.5,3820.8,0.70061725]
[1761935598167,0.2283,3821.3,3821.2,3.2078]
[1761935598373,0.2283,3821.3,3821.2,12.4588]
[1761935598978,0.2283,3821.3,3821.2,3.2078]
[1761935599176,0.2283,3821.3,3820.6,0.47139]
[1761935599177,3.2078,3820.3,3819.3,0.9385485]
[1761935599472,0.1414,3820.5,3817.6,6.734]
[1761935599473,0.2283,3818.7,3817.6,6.734]
[1761935599676,3.2078,3818.0,3817.9,0.2167]
[1761935599868,3.2078,3818.5,3818.4,0.2167]
[1761935600068,3.21077438,3818.5,3818.4,0.21923227]
[1761935603671,3.21077438,3818.5,3818.4,0.00253227]
[1761935603872,3.21077438,3818.5,3818.4,0.21923227]
[1761935605483,3.2078,3819.0,3818.4,8.00253227]
[1761935605682,3.3492,3819.0,3818.4,0.00253227]
[1761935606083,0.1414,3819.0,3818.4,0.00253227]
[1761935606588,0.1414,3819.0,3818.5,3.2078]
[1761935606789,0.14451698,3819.0,3818.5,3.2078]
[1761935607489,0.14451698,3819.0,3818.5,9.385]
[1761935608988,0.2283,3818.5,3818.4,0.00253227]
[1761935612193,0.3697,3818.5,3818.4,0.00253227]
[1761935612690,0.1414,3818.5,3818.4,0.00253227]
[1761935613399,0.1414,3818.5,3818.4,0.47420227]
[1761935613694,0.1414,3818.5,3818.4,0.00253227]
[1761935614296,0.1414,3818.5,3818.4,0.47420227]
[1761935614696,0.1414,3818.5,3818.4,8.47420227]
[1761935614998,0.14451698,3819.0,3818.9,0.47161]
[1761935614999,0.00311698,3819.0,3818.9,0.47161]
[1761935615195,0.00311698,3819.0,3818.9,13.05241]
[1761935615496,0.1414,3819.5,3819.4,0.47155]
[1761935615799,0.1414,3819.5,3819.4,3.67935]
[1761935616092,0.1414,3819.5,3819.4,3.2078]
[1761935616489,0.14415679,3819.5,3819.4,3.2078]
[1761935617999,0.37245679,3819.5,3819.4,12.5748]
[1761935619701,0.37245679,3819.5,3819.4,9.367]
[1761935620702,0.14415679,3819.5,3819.4,9.367]
[1761935620998,0.14415679,3819.5,3819.4,13.04635]
[1761935621504,0.14415679,3819.5,3819.4,12.5748]